Cogmind - Beta 16 @@@ ROGUE MODE // 2025.11.10 @ 14:16:54 Player: Maxfecteau Result: Destroyed by S-10 Pest with Light Assault Rifle Performance ------------- Evolutions (0) 0 Regions Visited (2) 400 Robots Destroyed (0) 0 Value Destroyed (0) 0 Prototype IDs (0) 0 Alien Tech Used (0) 0 Bonus (0) 0 TOTAL SCORE: 400 Bonus ------- None Cogmind --------- Core Integrity 0/250 Matter 300/300 Energy 98/100 System Corruption 0% Temperature Cool (0) Movement Core (50) Location -10/Mines Parts ------- > --- POWER (1) -------- (None) > --- PROPULSION (2) --- (None) > --- UTILITY (2) ------ Signal Interpreter System Shield > --- WEAPON (2) ------- Mining Claw > --- INVENTORY (5) ---- Light Ion Engine Signal Interpreter Improved Signal Interpreter Improved Terrain Scanner Peak State ------------ > --- POWER ------------ (None) > --- PROPULSION ------- (None) > --- UTILITY ---------- Signal Interpreter System Shield > --- WEAPON ----------- Mining Claw > --- INVENTORY -------- Light Ion Engine Signal Interpreter Improved Signal Interpreter Improved Terrain Scanner [Rating: 5] Favorites ----------- Power None Propulsion None Utility Signal Interpreter Processor Signal Interpreter Hackware System Shield Weapon Mining Claw Slashing Weapon Mining Claw Build | -11 -10 -10 ------- Run | Yrd Mat Min Slots Evolved . | . . . Power . | . . . Propulsion . | . . . Utility . | . . . Weapon . | . . . Parts Attached 3 | . 1 2 Power . | . . . Engine . | . . . Core . | . . . Reactor . | . . . Propulsion . | . . . Treads . | . . . Leg . | . . . Wheel . | . . . Hover . | . . . Flight . | . . . Utility 2 | . 1 1 Device . | . . . Storage . | . . . Processor 1 | . 1 . Hackware 1 | . . 1 Protection . | . . . Artifact . | . . . Weapon 1 | . . 1 Energy Gun . | . . . Energy Cannon . | . . . Ballistic Gun . | . . . Ballistic Cannon . | . . . Launcher . | . . . Special Weapon . | . . . Impact Weapon . | . . . Slashing Weapon 1 | . . 1 Piercing Weapon . | . . . Special Melee Weapon . | . . . Unidentified Prototypes . | . . . Parts Lost . | . . . Power . | . . . Propulsion . | . . . Utility . | . . . Weapon . | . . . Highest Loss Streak . | . . . To Critical Strikes . | . . . Average Backups 3 | . 2 3 Power . | . 1 1 Propulsion . | . . . Utility 2 | . 1 2 Weapon . | . . . Tool/Special . | . . . Unused Backups 5 | . . 5 Power 1 | . . 1 Propulsion . | . . . Utility 4 | . . 4 Weapon . | . . . Tool/Special . | . . . Average Slot Usage (%) 24 | . 7 34 Processor 11 | . 7 14 Hackware 8 | . . 12 Slashing Weapon 4 | . . 7 Peak Build Rating 5 | . 1 5 Average Rating 2 | . . 4 On Entrance . | . . 1 Avg Prop Armor Cover (%) . | . . . Naked Turns 41 | . 41 . Heaviest Build 2 | . . 2 Greatest Support 3 | 3 3 3 Greatest Overweight (x) . | . . . Average Overweight (x) . | . . . Largest Inventory Capacity 5 | 5 5 5 Average Capacity 5 | 5 5 5 Most Carried 4 | 1 3 4 Average Carried 3 | . 2 3 Final Capacity 5 | 5 5 5 Final Carried 4 | 1 3 4 Class Distribution -------------------- 100% | Mutant Dominant Class ---------------- Mutant | -10/Materials Mutant | -10/Mines Resources | -11 -10 -10 ----------- Run | Yrd Mat Min Matter Collected 230 | 200 . 30 Remotely . | . . . Salvage Created . | . . . Parts . | . . . Haulers Intercepted . | . . . Recyclers Shooed . | . . . Parts Field Recycled . | . . . Retrieved Matter . | . . . Parts Self-Destructed . | . . . Prevented . | . . . Parts Restored . | . . . Kills | -11 -10 -10 ------- Run | Yrd Mat Min Combat Hostiles Destroyed . | . . . Classes Destroyed . | . . . Best Kill Streak . | . . . Combat Bots Only . | . . . Max Kills in Single Turn . | . . . Gunslinging . | . . . Exploded . | . . . Melee . | . . . Uniques/NPCs Destroyed . | . . . Combat | -11 -10 -10 -------- Run | Yrd Mat Min Hostile Shots Fired 44 | . 5 39 Missed 14 | . 3 11 Hits 30 | . 2 28 Projectile 30 | . 2 28 Damage Taken 266 | . 22 244 Core 258 | . 22 236 Absorbed by Shields . | . . . Core Remaining (%) 100 | 100 . . Volleys Fired . | . . . Largest . | . . . Hottest . | . . . Shots Fired . | . . . Gun . | . . . Cannon . | . . . Launcher . | . . . Special . | . . . Kinetic . | . . . Thermal . | . . . Explosive . | . . . Electromagnetic . | . . . Robot Hit Streak . | . . . Robot Miss Streak . | . . . Penetration Max . | . . . Secondary Targets . | . . . Shots Hit Robots 1 | . . 1 Core Hits . | . . . Critical Kills . | . . . Critical Parts Destroyed . | . . . Critical Strikes . | . . . Melee Attacks 2 | . . 2 Impact . | . . . Slashing 2 | . . 2 Piercing . | . . . Sneak Attacks . | . . . Combat Hostiles . | . . . Follow-up Attacks . | . . . Damage Inflicted 24 | . . 24 Guns . | . . . Cannons . | . . . Explosions . | . . . Melee 24 | . . 24 Ramming . | . . . Kinetic . | . . . Thermal . | . . . Explosive . | . . . Electromagnetic . | . . . Impact . | . . . Slashing 24 | . . 24 Piercing . | . . . Highest Corruption . | . . . Average Corruption . | . . . Corruption Purged . | . . . Corruption Blocked . | . . . Overload Shots . | . . . Overflow Damage . | . . . Projectiles . | . . . Explosions . | . . . Melee . | . . . Knockbacks . | . . . Impact . | . . . Kinetic . | . . . Secondary . | . . . Self-Inflicted Damage . | . . . Shots . | . . . Rammed . | . . . Targets Rammed . | . . . Kicked . | . . . Crushed . | . . . Highest Temperature . | . . . Average Temperature . | . . . Received Heat Transfer 54 | . 12 42 Siege Activations . | . . . Martial Activations . | . . . Shielding Activations . | . . . Robots Disrupted . | . . . Combat Hostiles . | . . . Robots Corrupted . | . . . Combat Hostiles . | . . . Parts Fried . | . . . Impact Corruptions . | . . . Robots Melted . | . . . Combat Hostiles . | . . . Parts Melted . | . . . Heat Transferred . | . . . Parts Sabotaged . | . . . Parts Stolen . | . . . Parts Stripped . | . . . Power Chain Reactions . | . . . Alert | -11 -10 -10 ------- Run | Yrd Mat Min Maximum Alert Level . | . . . Low Security (%) 100 | 100 100 100 Level 1 . | . . . Level 2 . | . . . Level 3 . | . . . Level 4 . | . . . Level 5 . | . . . High Security . | . . . Max Security . | . . . Peak Influence 15 | . 15 15 Initial 1 | . . 1 Average 2 | . 3 1 Influence Increases 45 | . 15 30 Lose Combat Pursuer 45 | . 15 30 Influence Decreases 40 | . 10 30 Entered New Map 4 | . . 4 Time Decay 36 | . 10 26 Squads Dispatched 2 | . 1 1 Investigation 1 | . . 1 Extermination . | . . . Reinforcement 1 | . 1 . Assault . | . . . Garrison . | . . . Intercept . | . . . Searches Triggered . | . . . Construction Impeded . | . . . Haulers Reinforced . | . . . Active Scanning Responses . | . . . Cargo Convoy Interrupts . | . . . Stealth | -11 -10 -10 --------- Run | Yrd Mat Min Distress Signals 1 | . 1 . Communications Jammed . | . . . Distress Signals . | . . . Times Spotted 12 | . 6 6 Peak Tracking Total 6 | . 6 4 Tactical Retreats 3 | . 1 2 Traps | -11 -10 -10 ------- Run | Yrd Mat Min Traps Triggered . | . . . Indirectly . | . . . Trap Hack Attempts . | . . . Triggered . | . . . Disarmed . | . . . Reprogrammed . | . . . Reused . | . . . Traps Extracted . | . . . Installed . | . . . Triggered . | . . . Machines | -11 -10 -10 ---------- Run | Yrd Mat Min Machines Disabled . | . . . Max in Single Turn . | . . . Machines Repaired . | . . . Machines Dismantled . | . . . Machines Sabotaged . | . . . Overloaded Fab Kills . | . . . Hacking | -11 -10 -10 --------- Run | Yrd Mat Min Machines Accessed 2 | . 1 1 Terminals 1 | . 1 . Fabricators . | . . . Repair Stations . | . . . Recycling Units . | . . . Scanalyzers . | . . . Garrison Access . | . . . Total Hacks 2 | . 1 1 Successful 1 | . . 1 Failed 1 | . 1 . Catastrophic 1 | . 1 . Database Lockouts . | . . . Manual 1 | . 1 . Terminals 1 | . 1 . Fabricators . | . . . Repair Stations . | . . . Recycling Units . | . . . Scanalyzers . | . . . Garrison Access . | . . . Terminal Hacks 1 | . . 1 Open Door 1 | . . 1 Fabricator Hacks . | . . . Repair Station Hacks . | . . . Recycling Unit Hacks . | . . . Scanalyzer . | . . . Garrison Access Hacks . | . . . Unauthorized Hacks . | . . . Terminals . | . . . Fabricators . | . . . Repair Stations . | . . . Recycling Units . | . . . Scanalyzers . | . . . Garrison Access . | . . . Data Cores Recovered . | . . . Used . | . . . Hacking Detections 1 | . 1 . Full Trace Events . | . . . Feedback Events . | . . . Feedback Blocked . | . . . Robot Schematics Acquired . | . . . Robots Built . | . . . Authchips . | . . . Time . | . . . Total Robot Build Rating . | . . . Part Schematics Acquired . | . . . Parts Built . | . . . Authchips . | . . . Time . | . . . Total Part Build Rating . | . . . Part Studies Acquired . | . . . Parts Repaired . | . . . Time . | . . . Parts Recycled . | . . . Recycled Matter . | . . . Retrieved Matter . | . . . Retrieved Components . | . . . Parts Scanalyzed . | . . . Part Schematics Acquired . | . . . Parts Damaged . | . . . Bothacking | -11 -10 -10 ------------ Run | Yrd Mat Min Used RIF Installer . | . . . Robots Hacked . | . . . Non-combat . | . . . Combat . | . . . Robot Hacks Applied . | . . . Relay Couplers Released . | . . . Fabnet Peak Effective % . | . . . Robots Rewired . | . . . Allies Hacked . | . . . Hacks Repelled . | . . . Allies | -11 -10 -10 -------- Run | Yrd Mat Min Total Allies . | . . . Largest Group . | . . . Highest-Rated Group . | . . . Highest-Rated Ally . | . . . Total Orders . | . . . Ally Attacks . | . . . Total Damage . | . . . Kills . | . . . Allies Corrupted . | . . . Allies Melted . | . . . Intel | -11 -10 -10 ------- Run | Yrd Mat Min Active Infowar (turns) . | . . . Robot Analysis Total . | . . . Derelict Logs Recovered 1 | . . 1 Drone Launches . | . . . Drone Recoveries . | . . . Exploration | -11 -10 -10 ------------- Run | Yrd Mat Min Turns Passed 325 | 19 106 200 Spaces Moved 582 | 37 182 363 Core 582 | 37 182 363 Treads . | . . . Legs . | . . . Wheels . | . . . Hover . | . . . Flight . | . . . Fastest Speed 50 | 50 50 50 Average Speed 50 | 50 50 50 Slowest Speed 50 | 50 50 50 Overloaded Moves . | . . . Propulsion Burnouts . | . . . Robots Hopped . | . . . Potential Cave-ins . | . . . Cave-ins Triggered . | . . . Exploration Rate (%) 27 | 3 37 43 Regions Visited 2 Branch Regions 1 Pre-discovered Areas 1 | . . 1 Known Exits Taken 1 | . 1 . Unknown Exits Taken 1 | 1 . . Scrap Searched 1 | . . 1 Spaces Dug . | . . . Terrain Destroyed . | . . . Melee . | . . . Projectile . | . . . AOE . | . . . Terrain Rammed . | . . . Walls Destroyed . | . . . Machines Disabled . | . . . Actions | -11 -10 -10 --------- Run | Yrd Mat Min Total 609 | 37 195 377 Wait 18 | . 11 7 Move 580 | 36 181 363 Hop . | . . . Pick Up 5 | 1 2 2 Fast Attach 3 | . 1 2 Attach . | . . . Detach . | . . . Swap . | . . . Drop 1 | . . 1 Fire . | . . . Melee 2 | . . 2 Ram . | . . . Kick . | . . . Crush . | . . . Escape Stasis . | . . . Rewire . | . . . Trap . | . . . Miscellaneous . | . . . Route ------- -11/Scrapyard -10/Materials -10/Mines (discovered 2 exits: *Mat x2) History --------- Turn | Location | Event 4 | -11/Scrapyard | Discovered new exit (range 16) 20 | -11/Scrapyard | Entered Materials 118 | -10/Materials | Discovered new exit (range 14) 125 | -10/Materials | Identified exit to Mines 126 | -10/Materials | Entered Mines 131 | -10/Mines | Met a Derelict shopkeep closing up shop 296 | -10/Mines | Learned location of Storage (-9) 297 | -10/Mines | Discovered new exit (range 12) 306 | -10/Mines | Discovered new exit (range 4) 307 | -10/Mines | Identified exit to Materials 315 | -10/Mines | Build established: Mutant 315 | -10/Mines | Core integrity fell below 50% 323 | -10/Mines | Core integrity fell below 20% 326 | -10/Mines | Destroyed by S-10 Pest with Light Assault Rifle Last Messages --------------- squad. Acquired System Shield. L5-G28(g): "Grab stuff and run for it!" Acquired Imp. Signal Interpreter. Acquired Imp. Terrain Scanner. K-01 Serf cleans the Laser Drill. K-01 Serf collects debris. K-01 Serf cleans the Laser Drill. Acquired Mining Claw. Searching scrap... Found Sml. Storage Unit. Found 51 Matter. Found Lgt. Assault Rifle. Found 62 Matter. Acquired 30 matter. T-07 Excavator is excavating. Acquired derelict log, extracted data. World map updated: -9/Storage. EXIT=FOUND EXIT=IDENTIFIED: MATERIALS Map ----- +----------------------------------------------------+ | ????????# #?????????????##### #?????????? | | ????????# #???????????## ####### #?????????? | | ??????### ###????????# ##???????????????? | | ??????# ######### ###?????????????? | | ??????# #?????????????? | | ??????# """ ##### ????????????? | | ??????# """ #???# #### ! ?????????????? | | ??????# """ #???# ##????????#?????????????? | | ??????# #???# ##???? %= #?????????????? | | ??????#######???## ##% [ #?????????????? | | ?????????????????# % ???????????? | | ?????????????????#% = ???????????? | | ?????????????????#[### ### ###???????????? | | ?????????????????#%#??#####??????????????????? | | ???????????????###!#?????????????????????????? | | ?????????####### #?????????????????????????? | | ?????????# ###########?????????????????? | | ?????????# ## #?????????????????? | | ?????????####### ## s"""#?????????????????? | | ???????????????# ## s"""#?????????????????? | | ????????????#### ## """#?????????????????? | | ????????????# ## < #?????????????????? | | ????????????# ##### #?????????????????? | | ????????????# #???# sg #?????????????????? | | ????????????# #???### ######?????????????????? | | ????????????# #?#####@#??????????????????????? | | ????????????# #?# #??????????????????????? | | ???????????## #?# #####??????????????????????? | | ??????????## ### #??????????????????????????? | | ??????????# #??????????????????????????? | | ?????????# ## #??????????????????????????? | | ????????# ## #??????????????????????????? | | ????????# ### #??????????????????????????? | | ????????# ##?# #??????????????????????????? | | ???????# #???# ??????????????????????????? | | ?????? ????###??????????????????????????? | | ????? #?????????????????????????????????? | | ????# < ??????????????????????????????????? | | ????# #??????????????????????????????????? | | ????## ##???????????????????????????????????? | | ?????###?????????????????????????????????????? | | ?????????????????????????????????????????????? | | | | | | | | | | | | | | | | | +----------------------------------------------------+ Best States ------------- Heat Dissipation 25 Energy Generation 5 Energy Capacity 100 Matter Stores 300 Matter Capacity 300 Sight Range 16 Terrain Scan Density 10 Evasion (%) 50 Defensive Hacking 10 Item Schematics ----------------- None Robot Schematics ------------------ None Fabricated ------------ Nothing Repaired ---------- Nothing Studied --------- None Alien Tech Used ----------------- None Achievements -------------- None Challenges ------------ None Game ------ Seed BiomechanicalRiotJetlance Manual? 0 Play Time 00:13:39 Cumulative 21.8 hours Start 2025.11.10 @ 14:05:12 End 2025.11.10 @ 14:16:54 Sessions 1 Manual Loads 0 Difficulty Rogue Special Mode None Game No. 18 Rogue 18 Adventurer 0 Explorer 0 Win Type - Total 1 Types 1/0/0/0/0/0/0/0/0/0 Lore% 15 Gallery% 21 Achievement% 23 Wizard Run 0 Options --------- Layout 0 ASCII 0 Keyboard 0 Movement Arrows Keybinds 0 Fullscreen 2 Font 18/SmallcapsGlow Map View 76x50 Zoom Use 0% Tactical HUD 0 Map Filters NONE Filters NONE Steam 1 RUN: 0cc23ddc-813d-41e6-ae4b-3c3d599dc0bf